bitfinex-derivatives/quotes_ETHF0:USTF0_20250824
["timestamp","ask_amount","ask_price","bid_price","bid_amount"]
[1756057547384,0.3072,4922.2,4920.5,0.5361]
[1756057547578,0.40644,4921.9,4921.2,0.685]
[1756057547778,1.67244,4922.8,4920.5,0.0203]
[1756057547779,0.40647,4921.5,4920.5,0.0203]
[1756057548090,1.01599,4922.5,4921.1,0.4065]
[1756057548293,0.40646,4921.7,4921.1,0.4065]
[1756057548494,1.01609,4922.0,4920.7,1.3868]
[1756057548688,0.2982,4921.5,4920.7,0.685]
[1756057548885,0.2982,4921.5,4919.7,0.40661]
[1756057548886,0.40654,4920.7,4919.7,0.40661]
[1756057549088,0.40652,4920.9,4920.1,0.40659]
[1756057549389,0.40653,4920.8,4920.4,0.7018]
[1756057549589,0.40653,4920.8,4920.6,1.2211]
[1756057549789,0.40653,4920.8,4920.7,1.9229]
[1756057550689,0.40653,4920.8,4920.7,1.3868]
[1756057550886,0.40653,4920.8,4920.2,0.40657]
[1756057551091,0.70199825,4921.5,4920.1,1.3868]
[1756057551288,0.40658,4920.3,4919.9,1.2379]
[1756057551488,0.40658,4920.3,4920.0,1.9229]
[1756057551693,0.40658,4920.3,4919.8,0.40661]
[1756057551889,0.40658,4920.3,4920.1,0.5361]
[1756057552192,0.40656,4920.5,4920.2,1.3868]
[1756057552388,0.009,4921.4,4920.2,1.3868]
[1756057552588,0.40656,4920.5,4920.2,1.3868]
[1756057552892,0.40666,4919.3,4918.7,0.685]
[1756057553191,0.40666,4919.3,4918.5,0.40671]
[1756057553394,0.40668,4919.0,4918.6,1.3868]
[1756057553594,0.4067,4918.8,4918.4,1.3868]
[1756057553783,0.40672,4918.6,4918.4,1.3868]
[1756057554184,0.009,4919.5,4918.4,1.3868]
[1756057554388,0.009,4919.5,4917.1,0.0203]
[1756057554389,0.009,4919.5,4917.8,0.40677]
[1756057554584,0.6655,4919.3,4917.7,1.79358]
[1756057554786,0.009,4920.8,4918.9,0.0203]
[1756057554984,0.82124714,4920.7,4919.2,1.3868]
[1756057555189,0.009,4920.8,4919.3,1.79345]
[1756057555385,0.009,4920.8,4919.3,1.3868]
[1756057555584,0.40654,4920.7,4919.6,0.40663]
[1756057555789,26.358,4921.3,4919.0,0.5361]
[1756057555790,26.358,4921.3,4920.5,0.40655]
[1756057555992,26.358,4921.3,4920.4,0.685]
[1756057556590,26.76449,4921.3,4920.4,0.40656]
[1756057556800,26.358,4921.3,4920.1,0.7018]
[1756057556992,26.358,4921.3,4920.5,0.40655]
[1756057557190,25.33906825,4921.3,4920.9,0.40651]
[1756057557391,25.33906825,4921.3,4920.3,0.5361]
[1756057557692,25.33906825,4921.3,4920.4,0.40656]
[1756057557996,25.33906825,4921.3,4920.2,0.685]
[1756057558394,25.33906825,4921.3,4921.2,0.4065]
[1756057558690,29.273,4922.2,4921.8,0.40644]
[1756057558691,29.282,4922.2,4921.8,0.40644]
[1756057558896,0.40637,4922.7,4922.0,1.3868]
[1756057560095,26.273,4922.8,4922.0,1.3868]
[1756057560297,25.25406825,4922.8,4922.5,1.3868]
[1756057560489,25.25406825,4922.8,4920.9,0.5361]
[1756057560490,0.009,4922.2,4920.9,0.5361]
[1756057560686,0.40649,4921.3,4920.5,0.7018]
[1756057560892,0.40649,4921.3,4920.3,0.40656]
[1756057561094,0.40651,4921.1,4920.2,0.40658]
[1756057561295,0.40653,4920.8,4919.8,1.3868]
[1756057561498,0.6565,4920.9,4919.4,0.5361]
[1756057561499,0.41554,4920.7,4919.4,0.5361]
[1756057561704,0.009,4920.7,4919.4,0.5361]
[1756057562200,0.6565,4920.9,4919.1,0.7018]
[1756057562201,1.67282,4920.9,4919.1,0.7018]
[1756057562402,0.40661,4919.8,4919.1,0.7018]
[1756057562589,0.40661,4919.8,4919.0,0.685]
[1756057562590,0.009,4919.9,4919.3,0.40665]
[1756057563193,0.6565,4921.0,4919.5,0.7018]
[1756057563401,0.40656,4920.5,4919.8,0.40661]
[1756057563597,0.40656,4920.5,4919.6,0.40663]
[1756057564001,0.40657,4920.3,4919.5,0.7018]
[1756057564202,0.40659,4920.2,4919.5,0.7018]
[1756057564399,0.40665,4919.4,4918.6,1.3868]
[1756057564596,0.40667,4919.1,4918.6,1.3868]
[1756057564803,0.6565,4919.7,4918.0,0.7018]
[1756057565193,1.01658,4919.6,4918.0,0.7018]
[1756057565405,0.40673,4918.4,4918.0,0.7018]
[1756057565702,0.40674,4918.3,4917.4,0.4068]
[1756057565903,0.6565,4918.8,4917.3,0.7018]
[1756057565904,1.01678,4918.7,4917.3,0.7018]
[1756057566204,1.01678,4918.7,4916.4,0.7018]
[1756057566205,26.263,4918.4,4916.4,0.7018]
[1756057566406,0.6565,4917.2,4915.8,1.2211]
[1756057566701,48.63368,4918.4,4916.4,0.726]
[1756057566702,0.0896,4917.7,4916.4,0.726]
[1756057566903,0.40685,4916.9,4916.5,0.5232]
[1756057567199,0.0384,4916.6,4916.0,0.726]
[1756057567402,0.0512,4916.7,4915.2,0.726]
[1756057567703,0.0512,4916.7,4915.3,0.5232]
[1756057567907,0.40682,4917.3,4916.0,1.2492]
[1756057568101,0.40684,4917.1,4916.0,1.2492]
[1756057568302,26.263,4917.9,4916.0,0.726]
[1756057568303,0.40689,4916.4,4916.0,0.726]
[1756057568500,0.40691,4916.2,4915.3,2.0137]
[1756057568800,0.0512,4918.7,4916.7,0.7645]
[1756057569001,0.0512,4918.7,4916.6,0.726]
[1756057569002,0.0512,4918.7,4917.2,0.726]
[1756057569199,0.0384,4918.8,4917.7,0.5232]
[1756057569401,25.73833825,4919.1,4917.7,1.4905]
[1756057569603,0.40669,4918.9,4917.9,0.40677]
[1756057569899,26.259,4920.2,4918.7,1.2877]
[1756057570105,0.40659,4920.1,4919.0,1.2877]
[1756057570297,0.40659,4920.1,4919.1,0.726]
[1756057570492,1.0164,4920.5,4919.1,0.726]
[1756057570698,1.01639,4920.6,4918.3,0.7645]
[1756057570699,0.40672,4918.6,4918.3,0.7645]
[1756057570903,0.7427,4919.3,4918.3,0.7645]
[1756057570904,0.40669,4918.9,4918.3,0.7645]
[1756057571306,0.40661,4919.9,4918.8,0.40669]
[1756057571508,26.262,4920.0,4919.4,2.0137]
[1756057571707,26.262,4920.0,4919.5,2.0137]
[1756057572006,26.262,4920.0,4918.2,1.01687]
[1756057572007,26.262,4920.0,4919.6,0.5232]
[1756057572213,26.262,4920.0,4919.4,0.40664]
[1756057572214,0.40657,4920.3,4920.0,1.4905]
[1756057572412,25.64763825,4921.0,4918.7,2.0137]
[1756057572609,1.01644,4920.3,4918.7,2.0137]
[1756057572913,0.7427,4919.9,4918.9,0.40668]
[1756057573102,0.7427,4920.9,4919.0,2.0137]
[1756057573306,1.01637,4920.7,4919.0,2.0137]
[1756057573510,0.7427,4920.9,4919.2,0.40665]
[1756057573707,0.7427,4920.9,4919.4,0.726]
[1756057573908,0.40659,4920.1,4918.2,0.0203]
[1756057574104,0.7427,4920.9,4919.3,0.7645]
[1756057574304,0.7427,4920.9,4919.4,1.65584]
[1756057574615,0.7427,4920.9,4918.6,0.0203]
[1756057574616,26.05415825,4921.0,4920.1,0.5232]
[1756057574810,26.05414825,4921.0,4920.3,0.7645]
[1756057575011,25.64763825,4921.0,4920.4,0.40656]
[1756057575513,0.40648,4921.4,4920.5,0.40655]
[1756057575714,26.255,4922.0,4920.9,0.7645]
[1756057576007,26.255,4922.0,4921.6,2.0137]
[1756057576308,26.255,4922.0,4920.8,0.0203]
[1756057576309,0.40641,4922.4,4920.8,2.0137]
[1756057576501,0.40638,4922.6,4921.9,0.726]
[1756057577409,0.40637,4922.8,4922.0,0.40642]
[1756057577611,26.252,4923.1,4922.0,0.40642]
[1756057577612,26.252,4923.1,4922.1,1.2492]
[1756057577808,0.4063,4923.6,4922.8,2.0137]
[1756057578109,0.40629,4923.8,4922.8,2.0137]
[1756057578312,26.248,4924.6,4923.0,0.40635]
[1756057578510,25.22906825,4924.6,4923.0,0.40635]
[1756057578710,0.40627,4923.9,4923.0,0.40635]
[1756057578907,0.40627,4923.9,4923.3,0.726]
[1756057578908,0.40628,4923.9,4923.3,0.726]
[1756057579103,0.40626,4924.1,4923.3,0.726]
[1756057579302,0.40628,4923.9,4923.3,0.726]
[1756057579509,0.40628,4923.9,4922.1,0.0203]
[1756057579510,0.40632,4923.4,4922.8,0.7645]
[1756057579902,25.22906825,4924.6,4922.8,0.7645]
[1756057580115,25.22906825,4924.6,4921.8,0.0203]
[1756057580116,0.4064,4922.5,4922.3,1.4905]
[1756057580507,1.01582,4923.3,4921.5,1.4905]
[1756057580705,0.40642,4922.2,4921.5,1.4905]
[1756057581214,1.01612,4921.9,4921.1,0.7645]
[1756057581411,25.21506825,4921.9,4921.1,0.7645]
[1756057581612,0.40647,4921.6,4921.2,2.0137]
[1756057581917,0.7427,4923.8,4922.4,0.7645]
[1756057582117,0.40636,4922.9,4921.6,0.0203]
[1756057582416,0.40636,4922.9,4922.6,2.0137]
[1756057582616,0.40636,4922.9,4922.8,1.2877]
[1756057582814,0.40634,4923.1,4922.8,1.2492]
[1756057583019,0.40633,4923.3,4922.5,0.7645]
[1756057583218,0.40634,4923.1,4922.3,0.40641]
[1756057583413,0.40634,4923.2,4922.7,1.2492]
[1756057583611,0.40634,4923.2,4922.6,1.4905]
[1756057583810,0.40634,4923.2,4922.5,0.40638]
[1756057584215,0.40634,4923.2,4923.1,2.0137]
[1756057584415,0.40634,4923.2,4922.0,0.0203]
[1756057584416,0.40631,4923.5,4922.9,0.7645]
[1756057584608,0.40633,4923.3,4922.8,0.726]
[1756057584809,0.40634,4923.2,4922.6,0.726]
[1756057585018,0.40634,4923.2,4922.6,2.0137]
[1756057585708,1.01584,4923.3,4922.6,2.0137]
[1756057585914,1.01579,4923.4,4922.6,1.4905]
[1756057586318,0.7427,4923.9,4922.6,1.4905]
[1756057586522,1.01571,4923.8,4922.6,1.4905]
[1756057586823,1.01571,4923.8,4922.4,1.4905]
[1756057587009,0.7427,4923.9,4922.5,0.7645]
[1756057587212,1.01574,4923.7,4922.5,0.7645]
[1756057587407,0.40638,4922.7,4922.2,1.2492]
[1756057587618,1.01576,4923.6,4922.4,0.726]
[1756057588023,0.7427,4923.9,4922.4,0.726]
[1756057588215,0.40638,4922.6,4922.4,1.4905]
[1756057588409,0.40638,4922.6,4920.2,30.29944]
[1756057588410,0.40645,4921.8,4921.6,2.0137]
[1756057588610,0.7427,4922.2,4921.0,2.0137]
[1756057588815,0.40647,4921.5,4921.1,0.5232]
[1756057589118,1.1493,4920.0,4919.7,0.5232]
[1756057589320,0.7427,4919.8,4918.9,0.40669]
[1756057589519,0.7427,4919.8,4918.5,0.7645]
[1756057589720,0.0203,4921.4,4917.3,20.34117]
[1756057589721,26.192,4921.8,4919.6,0.7645]
[1756057590019,26.192,4921.8,4920.8,2.0137]
[1756057590322,26.192,4921.8,4920.3,0.40657]
[1756057590518,25.17306825,4921.8,4920.5,2.0137]
[1756057590713,25.17306825,4921.8,4920.7,0.5232]
[1756057590918,0.4065,4921.2,4919.7,2.0137]
[1756057591119,0.4065,4921.2,4920.7,0.40653]
[1756057591319,25.17306825,4921.8,4920.8,2.0137]
[1756057591516,25.17306825,4921.8,4921.1,0.4065]
[1756057591721,26.18,4923.1,4921.2,1.03654]
[1756057591915,0.4064,4922.4,4921.7,0.40645]
[1756057592116,0.40642,4922.2,4921.4,0.40647]
[1756057592313,0.40639,4922.6,4921.9,0.40644]
[1756057592516,0.40635,4923.0,4922.3,0.9296]
[1756057592716,0.40636,4922.9,4922.4,2.0137]
[1756057592929,26.18,4923.1,4922.5,2.0137]
[1756057593227,26.18,4923.1,4922.4,0.40639]
[1756057593228,26.58634,4923.1,4922.4,1.4905]
[1756057593427,26.18,4923.1,4922.4,1.4905]
[1756057593623,25.16106825,4923.1,4922.4,1.4905]
[1756057594325,0.40639,4922.6,4921.9,0.40643]
[1756057594515,25.16106825,4923.1,4922.4,0.40639]
[1756057594718,0.40636,4922.9,4922.4,0.40639]
[1756057594920,0.40637,4922.8,4922.7,2.0137]
[1756057595422,0.40635,4923.0,4922.8,1.4905]
[1756057595725,25.18726825,4923.1,4920.7,1.01635]
[1756057595923,25.18726825,4923.1,4921.8,1.17094]
[1756057596118,0.40641,4922.4,4921.8,1.4905]
[1756057596320,0.40645,4921.8,4921.0,0.40651]
[1756057596521,0.40642,4922.2,4921.5,0.40647]
[1756057596716,25.16106825,4923.1,4921.8,0.40644]
[1756057596915,25.16106825,4923.1,4921.9,1.4866]
[1756057597115,0.40642,4922.2,4922.0,0.6956]
[1756057597321,0.40642,4922.2,4921.6,2.0346]
[1756057597519,25.16106825,4923.1,4921.6,2.0346]
[1756057597724,25.16106825,4923.1,4921.8,0.40645]
[1756057598028,0.40643,4922.1,4921.9,2.0346]
[1756057598226,0.40643,4922.1,4922.0,0.6956]
[1756057598429,0.0203,4922.8,4921.2,2.0346]
[1756057598430,1.01601,4922.4,4921.2,2.0346]
[1756057598626,0.0151,4922.3,4921.2,2.0346]
[1756057598825,0.40645,4921.8,4921.2,2.0346]
[1756057599031,0.40652,4920.9,4920.5,0.548]
[1756057599223,0.40652,4921.0,4920.5,0.548]
[1756057599619,0.41026825,4921.6,4920.6,0.6956]
[1756057599824,1.01619,4921.5,4920.6,0.6956]
[1756057600019,0.41026825,4921.6,4920.0,1.19759]
[1756057600020,0.40655,4920.6,4920.0,0.40659]
[1756057600226,0.40657,4920.3,4920.1,0.6956]
[1756057600528,0.40659,4920.2,4920.1,0.6956]
[1756057600922,0.0086,4921.6,4919.5,1.01659]
[1756057601121,0.40655,4920.6,4919.2,1.2436]
[1756057601327,0.0086,4921.6,4919.9,1.339]
[1756057601631,0.0086,4923.8,4921.8,0.40644]
[1756057601820,0.41443246,4923.7,4922.0,0.95442]
[1756057602025,0.40631,4923.5,4922.1,1.4866]
[1756057602219,0.41493,4923.3,4922.1,1.4866]
[1756057602427,0.0086,4923.3,4922.1,1.4866]
[1756057602928,0.0086,4923.3,4922.0,0.548]
[1756057602929,0.40626,4924.1,4922.8,0.40636]
[1756057603132,25.22656825,4924.4,4922.8,0.791]
[1756057603333,0.40626,4924.1,4922.9,0.6956]
[1756057603535,0.40626,4924.1,4923.1,0.40633]
[1756057603724,0.4063,4923.6,4922.1,0.791]
[1756057603923,0.40632,4923.4,4922.2,0.40641]
[1756057604225,0.40632,4923.4,4922.4,0.40639]
[1756057605224,0.0203,4923.3,4921.3,0.6956]
[1756057605430,0.41528802,4923.2,4921.3,0.6956]
[1756057605633,0.41528802,4923.2,4920.1,1.01647]
[1756057605634,1.01593,4922.8,4920.6,0.40654]
[1756057605842,0.40645,4921.9,4920.8,0.40652]
[1756057606029,26.51445,4921.8,4920.7,0.6956]
[1756057606332,26.108,4921.8,4920.4,0.791]
[1756057606528,0.41534765,4921.7,4920.4,0.791]
[1756057606729,0.4065,4921.2,4920.5,0.6956]
[1756057606938,0.4065,4921.3,4920.5,1.10215]
[1756057607230,26.108,4921.8,4920.6,0.40654]
[1756057607437,0.40649,4921.4,4920.6,0.40654]
[1756057607628,26.108,4921.8,4921.0,0.40651]
[1756057607829,0.40646,4921.7,4921.1,0.6956]
[1756057608225,0.40646,4921.7,4921.1,1.1021]
[1756057608432,26.108,4921.8,4921.4,0.40648]
[1756057608626,26.108,4921.8,4921.7,0.6956]
[1756057608831,25.07106825,4922.9,4921.7,1.4866]
[1756057609135,29.276,4924.6,4922.4,1.4866]
[1756057609327,26.50306131,4924.5,4923.2,0.40632]
[1756057609526,0.41506131,4924.4,4923.7,0.40629]
[1756057609727,29.276,4924.6,4923.7,0.40629]
[1756057609931,29.276,4924.6,4923.9,0.6956]
[1756057610129,0.40622,4924.5,4923.9,0.6956]
[1756057610333,0.40628,4923.9,4923.6,0.6956]
[1756057610528,0.40625,4924.2,4923.6,0.6956]
[1756057610842,0.4063,4923.7,4922.9,0.40635]
[1756057611033,29.276,4924.6,4922.6,0.6956]
[1756057611234,0.4148895,4924.5,4922.6,0.6956]
[1756057611451,0.4148895,4924.4,4923.2,0.40633]
[1756057611735,0.40627,4924.0,4923.3,1.10192]
[1756057611930,28.66333825,4924.6,4923.3,0.6956]
[1756057612131,0.41484624,4924.5,4922.8,0.791]
[1756057612330,29.67889825,4924.6,4922.1,0.791]
[1756057612331,0.40638,4922.6,4922.1,0.791]
[1756057612538,0.40638,4922.6,4922.2,0.6956]
[1756057612733,0.4064,4922.5,4922.2,0.6956]
[1756057612935,0.40641,4922.4,4922.2,0.6956]
[1756057613130,26.069,4923.0,4921.3,0.40649]
[1756057613131,0.40646,4921.7,4921.4,0.791]
[1756057613331,1.01593,4922.8,4921.1,0.6956]
[1756057613538,0.40645,4921.8,4921.1,0.6956]
[1756057613742,0.40646,4921.7,4921.0,0.40651]
[1756057613931,0.40646,4921.7,4921.3,1.339]
[1756057614132,0.40646,4921.7,4921.5,0.6956]
[1756057614333,0.40646,4921.7,4921.6,0.6956]
[1756057614534,0.40651,4921.1,4920.7,0.6956]
[1756057614736,0.40651,4921.1,4920.4,0.40656]
[1756057614930,25.44157825,4921.8,4920.8,0.6956]
[1756057615331,25.44157825,4921.8,4921.0,0.6956]
[1756057615541,0.81602003,4921.7,4921.1,0.548]
[1756057615739,0.40956003,4921.6,4921.1,0.6956]
[1756057615940,25.44157825,4921.8,4921.1,0.6956]
[1756057616135,0.40638,4922.7,4921.9,0.40644]
[1756057616342,0.81593304,4922.6,4922.0,0.6956]
[1756057616641,26.044,4922.8,4922.3,1.893]
[1756057616840,0.409488,4922.7,4922.5,0.6956]
[1756057617041,26.044,4922.8,4921.9,0.6956]
[1756057617236,0.81586842,4922.7,4922.1,0.40642]
[1756057617437,26.044,4922.8,4921.9,0.6956]
[1756057617638,0.40953151,4922.7,4921.5,1.01619]
[1756057617834,26.03,4923.4,4921.8,0.6956]
[1756057618043,0.4064,4922.5,4921.8,0.6956]
[1756057618239,0.40641,4922.3,4921.8,0.6956]
[1756057618436,0.40642,4922.2,4921.8,1.4866]
[1756057618638,0.40643,4922.1,4921.9,0.6956]
[1756057618939,0.40643,4922.1,4921.8,1.4866]
[1756057619340,0.40643,4922.1,4921.9,0.6956]
[1756057619536,25.01452415,4923.4,4921.9,0.6956]
[1756057619739,0.41040028,4923.3,4921.9,0.6956]
[1756057619944,0.41040028,4923.2,4921.9,0.6956]
[1756057620138,0.4064,4922.5,4921.9,0.6956]
[1756057620339,0.40643,4922.0,4921.2,0.40649]
[1756057620538,0.40643,4922.0,4921.0,1.339]
[1756057620539,1.0161,4921.9,4921.3,0.6956]
[1756057620744,0.4065,4921.1,4920.4,0.6956]
[1756057620947,0.42747415,4921.8,4920.4,0.6956]
[1756057621143,26.012,4922.0,4920.4,0.6956]
[1756057621144,0.40655,4920.6,4920.4,0.6956]
[1756057621544,0.40654,4920.7,4920.4,0.6956]
[1756057621855,26.006,4920.7,4919.5,0.791]
[1756057622038,26.006,4920.7,4919.1,0.40666]
[1756057622039,0.41044559,4920.6,4919.1,0.40666]
[1756057622238,0.41044559,4920.6,4918.6,0.791]
[1756057622239,0.41044559,4920.5,4919.9,2.0346]
[1756057622446,0.40655,4920.7,4920.2,2.0346]
[1756057622648,29.276,4922.2,4920.2,0.0203]
[1756057622838,0.41007137,4922.1,4919.8,0.6956]
[1756057623045,0.4065,4921.2,4920.3,0.40657]
[1756057623248,29.276,4922.2,4920.6,0.6956]
[1756057623452,0.40649,4921.3,4920.8,0.548]
[1756057623648,0.40649,4921.3,4921.0,0.548]
[1756057623849,0.40649,4921.3,4920.7,2.0346]
[1756057624051,28.66701415,4922.2,4921.2,1.4866]
[1756057624255,0.41006442,4922.1,4921.2,2.0346]
[1756057624451,0.41006442,4922.0,4921.2,2.0346]
[1756057624747,0.40649,4921.4,4921.2,0.6956]
[1756057624947,0.40646,4921.6,4920.9,0.6956]
[1756057625350,0.40646,4921.6,4921.0,0.548]
[1756057625547,28.66701415,4922.2,4921.2,0.548]
[1756057625744,28.66701415,4922.2,4921.3,1.4866]
[1756057625944,0.40642,4922.1,4921.3,0.40648]
[1756057626145,25.997,4922.5,4921.7,0.6956]
[1756057626444,26.4034,4922.5,4921.9,1.2436]
[1756057626644,25.997,4922.5,4921.9,1.2436]
[1756057627246,24.98152415,4922.5,4921.9,0.548]
[1756057627548,25.964,4923.5,4922.5,0.5602]
[1756057627740,25.964,4923.5,4922.7,0.7639]
[1756057627944,0.40636,4922.9,4922.7,0.7639]
[1756057628151,0.0267,4922.8,4922.7,0.7639]
[1756057628352,0.40632,4923.4,4922.7,1.5253]
[1756057628541,0.40633,4923.2,4922.9,2.0855]
[1756057628742,0.40633,4923.2,4923.0,1.5253]
[1756057628945,25.9907,4923.5,4923.1,0.7639]
[1756057629146,25.964,4923.5,4922.8,0.40636]
[1756057629356,25.964,4923.5,4922.8,0.7639]
[1756057629554,26.37031,4923.5,4922.8,1.5253]
[1756057629751,0.40632,4923.4,4922.8,1.5253]
[1756057630048,25.35486415,4923.5,4922.4,0.4064]
[1756057630252,25.35486415,4923.5,4922.3,0.5602]
[1756057630450,25.35486415,4923.5,4920.9,1.01631]
[1756057630451,0.0203,4922.5,4921.7,0.5602]
[1756057630654,1.01586,4923.1,4920.8,1.5253]
[1756057630655,0.46878,4921.5,4920.8,1.5253]
[1756057630856,0.40649,4921.3,4920.8,1.5253]
[1756057631048,0.40649,4921.3,4920.7,1.5253]
[1756057631244,0.40649,4921.4,4920.7,1.5253]
[1756057631551,0.40649,4921.4,4917.8,2.57855916]
[1756057631552,0.0267,4919.6,4919.5,0.7639]
[1756057631853,0.40663,4919.7,4919.5,0.7614]
[1756057632052,0.40663,4919.7,4918.0,1.06049834]
[1756057632053,0.0623,4919.7,4918.8,0.7614]
[1756057632251,0.0623,4919.7,4917.2,1.42358819]
[1756057632252,0.0267,4921.1,4919.0,1.0167]
[1756057632449,0.0267,4921.1,4918.4,21.35345]
[1756057632450,0.40649,4921.3,4920.7,1.5253]
[1756057632644,1.04287,4921.6,4919.8,0.7614]
[1756057632850,0.4066,4920.0,4919.7,0.5602]
[1756057633153,0.0356,4921.1,4918.6,0.0203]
[1756057633154,0.40651,4921.1,4920.2,1.3241]
[1756057633459,0.40651,4921.1,4920.3,1.5253]
[1756057633661,0.40653,4920.9,4920.3,1.5253]
[1756057633953,0.40651,4921.1,4920.3,1.5253]
[1756057634258,24.96982415,4921.5,4920.6,0.7639]
[1756057634259,0.40649,4921.3,4920.6,0.7639]
[1756057634655,24.96982415,4921.5,4920.3,0.7639]
[1756057634861,1.01621,4921.4,4920.3,0.7639]
[1756057635061,0.40656,4920.4,4920.3,0.7639]
[1756057635361,1.01621,4921.4,4920.3,0.7639]
[1756057635555,0.40656,4920.5,4920.3,0.7639]
[1756057635755,0.0203,4921.4,4919.2,2.49216]
[1756057635960,0.40661,4919.9,4919.4,0.7614]
[1756057636155,0.0203,4921.4,4919.2,0.5602]
[1756057636156,0.0203,4921.4,4919.5,1.5253]
[1756057636350,1.01625,4921.2,4919.7,0.5602]
[1756057636556,0.40656,4920.5,4919.8,0.7639]
[1756057636754,24.96982415,4921.5,4919.8,0.7639]
[1756057636960,1.01626,4921.2,4919.8,0.7639]
[1756057637162,0.40659,4920.2,4919.8,0.7639]
[1756057637456,0.4098365,4921.1,4920.0,0.7639]
[1756057637457,0.40659,4920.1,4920.0,0.7639]
[1756057638263,0.40663,4919.6,4919.3,0.7614]
[1756057638463,0.40663,4919.6,4919.4,0.7639]
[1756057638858,0.40664,4919.5,4919.4,0.7639]
[1756057639164,25.27414415,4920.1,4919.3,0.7614]
[1756057639466,25.27414415,4920.1,4919.5,0.7639]
[1756057639857,0.40662,4919.7,4919.5,0.7639]
[1756057640559,0.40662,4919.7,4918.7,1.3216]
[1756057640758,0.40669,4918.9,4918.7,0.7614]
[1756057640958,0.40669,4918.9,4918.7,0.7639]
[1756057641157,0.40669,4918.9,4918.8,0.7639]
[1756057641570,27.32741415,4920.1,4918.2,0.7639]
[1756057641862,0.40674,4918.3,4918.2,0.7639]
[1756057642264,25.854,4918.5,4917.5,0.7614]
[1756057642265,1.01683,4918.4,4917.5,0.7614]
[1756057642471,0.40679,4917.7,4917.5,0.7614]
[1756057642764,25.24526415,4918.5,4917.6,1.5253]
[1756057642955,0.40678,4917.8,4917.7,0.5602]
[1756057643156,0.40678,4917.8,4917.7,2.0855]
[1756057643666,0.40675,4918.1,4916.5,0.0203]
[1756057643965,0.40675,4918.1,4916.1,1.01729]
[1756057643966,25.24526415,4918.5,4917.3,2.0855]
[1756057644160,25.24526415,4918.5,4917.4,0.7639]
[1756057644469,25.24526415,4918.5,4917.7,2.0855]
[1756057644657,25.832,4919.2,4917.9,0.7614]
[1756057644860,25.832,4919.1,4917.9,0.7614]
[1756057645168,0.40675,4918.1,4918.0,0.7639]
[1756057645560,1.01683,4918.4,4917.3,0.7614]
[1756057645759,1.01675,4918.8,4917.6,1.5253]
[1756057645960,0.40669,4918.9,4918.1,0.40675]
[1756057646163,0.40664,4919.5,4918.6,1.3216]
[1756057646366,25.822,4919.9,4918.7,1.5253]
[1756057646563,0.40666,4919.3,4918.8,0.7639]
[1756057646760,0.40666,4919.3,4919.0,2.0855]
[1756057646963,0.40665,4919.4,4918.7,0.4067]
[1756057647265,25.822,4919.9,4919.0,1.3216]
[1756057647471,25.822,4919.9,4919.1,1.93197]
[1756057647664,25.822,4919.9,4918.6,0.0203]
[1756057647665,0.40664,4919.5,4919.2,0.7614]
[1756057647864,25.822,4919.9,4919.1,0.40666]
[1756057648165,0.40662,4919.8,4919.3,0.7639]
[1756057648369,25.21314415,4919.9,4919.1,0.40666]
[1756057648559,25.21314415,4919.9,4919.7,0.5602]
[1756057648765,25.21314415,4919.9,4919.3,0.5602]
[1756057648964,25.21314415,4919.9,4919.4,1.5253]
[1756057649165,25.21314415,4919.9,4919.0,0.40668]
[1756057649465,0.40655,4920.6,4919.7,2.0855]
[1756057649672,0.4066,4919.9,4919.8,1.5253]
[1756057649970,0.4066,4919.9,4919.1,0.5602]
[1756057649971,0.4066,4919.9,4919.1,1.3216]
[1756057650272,0.40665,4919.4,4919.0,0.5602]
[1756057650467,0.4067,4918.8,4918.6,0.7639]
[1756057650665,0.40675,4918.2,4918.0,1.5253]
[1756057650861,0.40675,4918.2,4918.0,0.7614]
[1756057651067,0.44024,4918.3,4918.1,0.7639]
[1756057651268,0.0586,4918.2,4918.1,0.7639]
[1756057651464,0.40674,4918.3,4918.1,0.7639]
[1756057651664,1.04917,4919.2,4918.0,0.7639]
[1756057651665,0.40671,4918.7,4918.0,0.7639]
[1756057651878,1.03699,4919.1,4917.9,1.3216]
[1756057652072,0.40679,4917.8,4917.6,0.7639]
[1756057652274,25.773,4917.9,4917.8,0.7639]
[1756057652462,25.77,4918.9,4917.9,0.7639]
[1756057652668,0.4068,4917.5,4916.6,2.0855]
[1756057652873,0.40679,4917.7,4916.8,0.7639]
[1756057653167,0.4068,4917.6,4917.0,0.7639]
[1756057653368,0.40678,4917.8,4917.0,0.7639]
[1756057653569,25.77,4918.9,4917.5,0.40679]
[1756057653764,26.17669,4918.9,4918.0,0.5602]
[1756057653967,0.40671,4918.7,4918.0,0.5602]
[1756057654271,25.77,4918.9,4918.2,1.17064]
[1756057654464,24.75452415,4918.9,4918.4,1.5253]
[1756057654661,25.16121415,4918.9,4918.0,1.72836]
[1756057654861,24.75452415,4918.9,4918.2,1.3216]
[1756057655068,24.75452415,4918.9,4917.2,1.01707]
[1756057655069,24.75452415,4918.9,4918.3,0.40674]
[1756057655264,24.75452415,4918.9,4917.5,0.0203]
[1756057655573,0.40673,4918.4,4918.3,0.7639]
[1756057656775,0.40673,4918.4,4918.3,1.5862]
[1756057656964,0.40671,4918.6,4916.8,1.03746]
[1756057657167,0.4067,4918.8,4917.9,0.40676]